bitfinex-derivatives/quotes_ETHF0:USTF0_20230401
["timestamp","ask_amount","ask_price","bid_price","bid_amount"]
[1680353604871,0.6785888,1827.4,1827.2,0.821]
[1680353605065,0.6785888,1827.3,1827.2,0.85840777]
[1680353605265,0.6785888,1827.4,1827.2,0.85840777]
[1680353606377,4.0268,1827.3,1827.2,0.03740777]
[1680353606673,4.7053888,1827.3,1827.0,0.817]
[1680353606975,1.14745782,1827.1,1827.0,0.817]
[1680353608277,4.35525782,1827.1,1827.0,0.817]
[1680353608476,3.2078,1827.1,1827.0,0.817]
[1680353608880,4.35528872,1827.1,1827.0,0.817]
[1680353609270,3.2078,1827.1,1827.0,0.817]
[1680353612481,3.2078,1827.1,1827.0,1.084]
[1680353613482,4.64212228,1827.1,1827.0,1.084]
[1680353613877,3.2078,1827.1,1827.0,1.084]
[1680353614280,4.64212228,1827.1,1827.0,1.084]
[1680353615580,4.64212228,1827.1,1827.0,1.12138659]
[1680353616284,1.14762451,1827.1,1827.0,1.12138659]
[1680353616778,1.14762451,1827.1,1827.0,2.12138659]
[1680353617481,1.14762451,1827.1,1827.0,3.21538659]
[1680353617682,1.14762451,1827.1,1827.0,9.36869196]
[1680353618186,1.14762451,1827.2,1827.0,9.36869196]
[1680353618371,1.14762451,1827.2,1827.1,2.084]
[1680353620084,1.14757325,1827.2,1827.1,2.084]
[1680353622283,1.43432228,1827.3,1827.1,2.084]
[1680353622484,1.14760854,1827.2,1827.1,2.084]
[1680353622782,1.43432228,1827.3,1827.1,2.084]
[1680353622989,1.1476086,1827.2,1827.1,2.084]
[1680353623387,1.43432228,1827.3,1827.1,2.084]
[1680353623593,2.11292112,1827.3,1827.1,2.084]
[1680353624088,1.14768738,1827.2,1827.1,2.084]
[1680353624283,1.43432228,1827.3,1827.1,2.084]
[1680353624587,2.11291949,1827.3,1827.1,2.084]
[1680353625385,3.2078,1827.4,1827.1,2.084]
[1680353625386,1.43432228,1827.2,1827.1,2.084]
[1680353625890,1.43432228,1827.2,1827.0,1.12738659]
[1680353626190,1.147812,1827.1,1827.0,1.12738659]
[1680353626691,1.147812,1827.1,1827.0,6.9444259]
[1680353627094,1.147812,1827.1,1827.0,7.9444259]
[1680353627688,1.147812,1827.1,1827.0,6.9444259]
[1680353627992,1.147812,1827.1,1827.0,7.9444259]
[1680353629694,1.147812,1827.1,1827.0,6.9444259]
[1680353631591,1.147812,1827.1,1827.0,7.9444259]
[1680353633093,1.147812,1827.1,1827.0,6.9444259]
[1680353635290,1.147812,1827.1,1827.0,7.9444259]
[1680353635499,1.147812,1827.1,1827.0,6.9444259]
[1680353637094,1.147812,1827.1,1827.0,5.8544259]
[1680353637597,2.231812,1827.1,1827.0,5.8544259]
[1680353637805,2.231812,1827.1,1827.0,0.03738659]
[1680353638008,1.084,1827.1,1827.0,0.03738659]
[1680353638499,2.084,1827.1,1827.0,0.03738659]
[1680353638694,2.084,1827.1,1826.8,40.8]
[1680353638899,0.86100839,1826.9,1826.8,40.8]
[1680353639303,0.86100839,1826.9,1826.8,46.82282633]
[1680353643201,0.86100839,1826.9,1826.8,51.12462633]
[1680353643406,0.86100839,1827.0,1826.8,51.12462633]
[1680353643604,0.86100839,1827.1,1827.0,2.178]
[1680353643902,0.86100839,1827.1,1827.0,5.80503799]
[1680353644404,0.86100839,1827.1,1827.0,46.60503799]
[1680353645599,0.86100839,1827.1,1827.0,46.6389122]
[1680353648508,0.86100839,1827.1,1827.0,41.2571122]
[1680353649207,0.86100839,1827.1,1827.0,0.4571122]
[1680353649401,2.24201119,1827.1,1827.0,0.03387421]
[1680353649605,6.44981119,1827.1,1827.0,0.03387421]
[1680353649808,6.44981119,1827.1,1826.7,45.63924799]
[1680353650009,0.86083401,1827.0,1826.8,1.0]
[1680353650313,0.86083401,1826.9,1826.8,1.0]
[1680353650516,0.86083401,1826.9,1826.7,45.63924799]
[1680353650814,0.86083401,1826.9,1826.8,5.75582688]
[1680353651507,0.86083401,1826.9,1826.8,6.75582688]
[1680353651904,0.86083401,1826.9,1826.8,5.75582688]
[1680353652411,0.86083401,1826.9,1826.8,6.75582688]
[1680353656220,0.86083401,1826.9,1826.8,5.75582688]
[1680353656817,0.86083401,1826.9,1826.8,6.75582688]
[1680353657012,0.86083401,1826.9,1826.8,7.84982688]
[1680353657219,0.86083401,1826.9,1826.8,6.84982688]
[1680353659017,0.86083401,1826.9,1826.8,5.75582688]
[1680353659315,1.0,1826.9,1826.8,5.75582688]
[1680353659814,3.23701119,1826.9,1826.8,5.75582688]
[1680353660117,6.44481119,1826.9,1826.8,5.75582688]
[1680353662122,6.44481119,1826.9,1826.7,40.8]
[1680353662420,0.86083168,1826.8,1826.7,40.8]
[1680353663921,0.86083168,1826.8,1826.7,41.894]
[1680353664218,0.86083168,1826.9,1826.7,41.894]
[1680353664410,0.86083168,1826.9,1826.8,2.084]
[1680353665624,0.86083168,1826.9,1826.8,1.084]
[1680353665923,0.86083168,1826.9,1826.8,2.084]
[1680353667918,0.86083168,1826.9,1826.8,7.81603586]
[1680353671833,0.86083168,1827.0,1826.8,7.81603586]
[1680353672033,0.86083168,1827.0,1826.9,1.09]
[1680353672230,2.00884287,1827.1,1826.9,5.2978]
[1680353672428,0.86083168,1827.1,1827.0,1.085]
[1680353672930,0.86083168,1827.1,1827.0,1.11740549]
[1680353675335,0.86083168,1827.1,1827.0,0.03240549]
[1680353675640,5.44481119,1827.2,1827.0,0.03240549]
[1680353676130,5.44481119,1827.2,1826.8,1.09]
[1680353676131,2.14801119,1827.1,1826.8,1.09]
[1680353676436,0.86039075,1827.0,1826.8,1.09]
[1680353676838,0.86039075,1827.0,1826.9,6.29645156]
[1680353677434,0.86039075,1827.0,1826.7,41.884]
[1680353678031,0.86039075,1827.0,1826.8,5.70190847]
[1680353678231,0.57360235,1826.9,1826.8,6.70190847]
[1680353678433,0.57360235,1826.9,1826.8,7.78590847]
[1680353681227,0.57360235,1826.9,1826.8,8.34506917]
[1680353687635,0.57360235,1826.9,1826.8,7.34506917]
[1680353687839,0.57360235,1826.9,1826.8,8.34506917]
[1680353688237,0.57360235,1826.9,1826.8,7.34506917]
[1680353690144,1.4339931,1826.9,1826.8,7.34506917]
[1680353691950,1.4339931,1826.9,1826.8,5.70190847]
[1680353692148,2.23901119,1826.9,1826.7,40.8]
[1680353692349,1.091,1826.8,1826.7,40.8]
[1680353692947,1.091,1826.8,1826.4,4.0688]
[1680353693248,0.57383121,1826.7,1826.4,4.0688]
[1680353693445,0.57383121,1826.7,1826.4,44.8688]
[1680353693852,0.57383121,1826.7,1826.5,5.99365684]
[1680353694052,0.57383121,1826.7,1826.6,1.0]
[1680353694446,0.57383121,1826.7,1826.5,6.99365684]
[1680353698760,0.57383121,1826.7,1826.5,5.99365684]
[1680353698956,0.57383121,1826.7,1826.6,40.8]
[1680353701565,4.35581119,1826.8,1826.6,40.8]
[1680353702366,0.5738823,1826.7,1826.6,40.8]
[1680353702662,0.57388215,1826.7,1826.6,40.8]
[1680353702963,3.2078,1826.8,1826.6,40.8]
[1680353703161,0.57388321,1826.7,1826.6,40.8]
[1680353703361,3.2078,1826.8,1826.6,40.8]
[1680353704158,0.57383897,1826.7,1826.6,40.8]
[1680353704665,0.57383185,1826.7,1826.6,40.8]
[1680353706867,3.2078,1826.8,1826.6,40.8]
[1680353707068,0.5737862,1826.7,1826.6,40.8]
[1680353710060,3.2078,1826.8,1826.6,40.8]
[1680353710260,0.57373935,1826.7,1826.6,40.8]
[1680353716873,0.57373935,1826.7,1826.6,41.619]
[1680353717061,0.57373935,1826.7,1826.6,42.44]
[1680353717267,0.57373935,1826.8,1826.6,45.6478]
[1680353717467,1.14801119,1826.9,1826.7,1.817]
[1680353717673,1.14801119,1826.9,1826.8,1.0]
[1680353719573,4.35581119,1827.0,1826.8,1.0]
[1680353720374,1.14801119,1826.9,1826.7,1.817]
[1680353722872,0.57376295,1826.8,1826.7,1.817]
[1680353723578,1.14801119,1826.9,1826.7,1.817]
[1680353725274,1.14801119,1826.9,1826.8,5.97414249]
[1680353725475,1.14801119,1826.9,1826.8,6.97414249]
[1680353729770,1.14801119,1827.0,1826.8,11.81994249]
[1680353729977,1.14801119,1827.1,1826.9,0.821]
[1680353730282,1.14779345,1827.1,1827.0,6.91724305]
[1680353730480,1.14779345,1827.1,1827.0,6.95173481]
[1680353731578,1.14779345,1827.1,1827.0,6.77273481]
[1680353734280,4.64212228,1827.1,1826.8,0.821]
[1680353734482,1.14773134,1827.0,1826.8,0.821]
[1680353735374,2.14773134,1827.0,1826.8,0.821]
[1680353736982,1.14773134,1827.0,1826.7,1.821]
[1680353737179,0.57390368,1826.8,1826.7,1.821]
[1680353740380,0.57390368,1826.8,1826.7,0.821]
[1680353740581,3.2078,1826.9,1826.7,0.821]
[1680353741682,3.2078,1826.9,1826.7,1.821]
[1680353741884,3.2078,1826.9,1826.7,0.821]
[1680353742287,0.57387835,1826.8,1826.7,0.821]
[1680353742479,3.2078,1826.9,1826.7,1.821]
[1680353742682,3.2078,1826.9,1826.7,0.821]
[1680353743892,4.35553134,1826.9,1826.7,0.821]
[1680353744285,3.2078,1826.9,1826.7,1.821]
[1680353744584,4.35553134,1826.9,1826.7,0.821]
[1680353744783,4.35553134,1826.9,1826.7,1.821]
[1680353745584,3.2078,1826.9,1826.7,1.821]
[1680353748292,4.35553134,1826.9,1826.7,1.821]
[1680353749288,4.35553134,1826.9,1826.7,0.821]
[1680353749587,4.35553134,1826.9,1826.7,1.821]
[1680353750591,4.35553134,1826.9,1826.7,0.821]
[1680353750791,4.35553134,1826.9,1826.7,1.821]
[1680353750988,4.35553134,1826.9,1826.7,0.821]
[1680353752098,0.86090313,1826.8,1826.7,0.821]
[1680353753299,0.86090313,1826.8,1826.7,1.821]
[1680353762507,4.35553134,1826.9,1826.7,1.821]
[1680353763017,0.86118556,1826.8,1826.7,1.821]
[1680353763305,4.35553134,1826.9,1826.7,1.821]
[1680353763507,4.35553134,1826.9,1826.7,0.821]
[1680353763704,4.35553134,1826.9,1826.7,1.821]
[1680353764206,4.35553134,1826.9,1826.7,0.821]
[1680353764706,1.14773134,1826.8,1826.7,0.821]
[1680353767011,1.14773134,1826.8,1826.6,41.619]
[1680353767211,0.86117495,1826.7,1826.6,41.619]
[1680353769805,4.0228,1826.7,1826.4,3.2078]
[1680353770013,0.57399656,1826.5,1826.4,3.2078]
[1680353770205,0.57059072,1826.5,1826.4,3.2078]
[1680353770708,0.57059072,1826.5,1826.4,4.2078]
[1680353774013,0.86099485,1826.6,1826.5,1.0]
[1680353775908,4.88379485,1826.7,1826.5,1.0]
[1680353777012,4.88579485,1826.7,1826.5,1.0]
[1680353779116,0.86099485,1826.6,1826.5,1.0]
[1680353779819,0.86099485,1826.6,1826.4,1.821]
[1680353780617,4.88579485,1826.7,1826.6,1.0]
[1680353781319,4.0248,1826.7,1826.5,40.8]
[1680353781522,0.86056908,1826.6,1826.5,40.8]
[1680353806956,0.86056908,1826.6,1826.5,41.621]
[1680353811849,4.35553134,1826.7,1826.5,41.621]
[1680353812045,4.35553134,1826.7,1826.6,1.0]
[1680353813854,4.64212228,1826.7,1826.6,1.0]
[1680353814961,1.14907616,1826.7,1826.6,1.0]
[1680353816159,1.14904285,1826.7,1826.6,1.0]
[1680353817056,2.25532228,1826.8,1826.6,1.0]
[1680353817260,1.14904247,1826.7,1826.6,1.0]
[1680353819660,0.86164323,1826.9,1826.7,0.287]
[1680353819860,0.86164323,1826.9,1826.8,1.642]
[1680353820059,0.86164323,1826.9,1826.8,8.48108293]
[1680353821963,0.86164323,1826.9,1826.8,6.66008293]
[1680353822154,1.14904247,1827.0,1826.8,6.66008293]
[1680353822354,0.86087399,1826.9,1826.8,6.66008293]
[1680353822555,0.86088926,1826.9,1826.8,0.821]
[1680353823065,1.72177198,1826.9,1826.8,0.821]
[1680353823969,1.7215482,1826.9,1826.8,0.821]
[1680353826962,1.7215482,1826.9,1826.7,0.821]
[1680353833273,0.86088926,1826.9,1826.7,0.821]
[1680353836977,0.86088926,1826.9,1826.8,0.821]
[1680353846983,0.86088926,1826.9,1826.7,0.821]
[1680353849190,0.86088926,1826.9,1826.8,1.0]
[1680353853801,1.7215482,1826.9,1826.8,1.0]
[1680353856099,1.7215482,1826.9,1826.7,0.821]
[1680353856705,1.7215482,1826.9,1826.7,6.301]
[1680353857001,0.86088926,1826.9,1826.8,2.49655363]
[1680353857198,0.86088926,1826.9,1826.8,9.29155965]
[1680353859299,0.86088926,1826.9,1826.8,6.65155965]
[1680353859500,0.86088926,1826.9,1826.8,0.821]
[1680353860003,1.7215482,1826.9,1826.8,0.821]
[1680353863897,0.86088926,1826.9,1826.8,0.821]
[1680353867003,0.86088926,1826.9,1826.7,0.817]
[1680353867204,0.86105849,1826.8,1826.7,0.817]
[1680353871705,1.72194775,1826.9,1826.7,4.0248]
[1680353872008,1.72194775,1826.9,1826.7,0.817]
[1680353877000,1.72194775,1826.9,1826.7,0.821]
[1680353877198,1.72194775,1826.9,1826.8,1.0]
[1680353883922,1.72194775,1826.9,1826.8,4.2078]
[1680353884117,1.72194775,1826.9,1826.8,1.0]
[1680353885522,0.86088926,1826.9,1826.7,1.821]
[1680353885724,1.72198808,1826.9,1826.7,1.821]
[1680353885922,1.72198808,1826.9,1826.7,0.821]
[1680353886220,0.86109882,1826.8,1826.7,0.821]
[1680353886822,1.72198808,1826.9,1826.7,0.821]
[1680353887023,1.72198808,1826.9,1826.7,0.819]
[1680353889825,0.86109882,1826.8,1826.7,0.819]
[1680353890026,0.85599022,1826.8,1826.7,0.819]
[1680353890325,1.4300554,1826.8,1826.7,0.819]
[1680353891828,1.43005735,1826.8,1826.7,0.819]
[1680353892627,0.85599022,1826.8,1826.7,0.819]
[1680353894026,0.85599022,1826.8,1826.7,1.81431172]
[1680353894225,0.85599022,1826.8,1826.7,0.81431172]
[1680353895821,1.67399022,1826.8,1826.6,41.89295991]
[1680353896022,0.57405909,1826.7,1826.6,41.33947718]
[1680353896430,1.96704247,1826.8,1826.6,41.33947718]
[1680353896822,0.818,1826.8,1826.6,41.33947718]
[1680353897323,0.57401687,1826.7,1826.6,41.33947718]
[1680353906327,0.57401687,1826.7,1826.6,42.15847718]
[1680353906925,0.57401687,1826.7,1826.6,41.33947718]
[1680353916333,0.57401687,1826.7,1826.6,42.97747718]
[1680353918343,0.57401687,1826.7,1826.6,46.17827718]
[1680353918546,0.57401687,1826.8,1826.6,46.17827718]
[1680353918738,0.57401687,1826.8,1826.7,1.819]
[1680353924446,0.57398739,1826.8,1826.7,1.819]
[1680353924846,0.86088926,1826.9,1826.7,1.819]
[1680353925047,0.86088926,1826.9,1826.8,1.821]
[1680353926964,0.86088926,1826.9,1826.8,1.819]
[1680353927853,2.00993173,1826.9,1826.8,1.819]
[1680353928556,0.86088926,1826.9,1826.8,1.819]
[1680353928851,2.00993173,1826.9,1826.8,1.819]
[1680353929445,0.86088926,1826.9,1826.8,1.819]
[1680353929654,2.00993173,1826.9,1826.8,1.819]
[1680353935660,2.00993173,1826.9,1826.8,0.819]
[1680353947171,2.00993173,1826.9,1826.7,1.821]
[1680353950068,0.86126928,1826.8,1826.7,1.821]
[1680353955870,0.86126928,1826.8,1826.7,0.821]
[1680353961174,5.21773173,1826.9,1826.7,0.821]
[1680353961981,5.21412917,1826.9,1826.7,1.821]
[1680353962183,5.21412917,1826.9,1826.7,0.821]
[1680353964786,5.21412917,1826.9,1826.7,1.821]
[1680353966980,5.21412917,1826.9,1826.7,1.0]
[1680353967987,4.35684247,1826.9,1826.7,1.0]
[1680353970785,1.14904247,1826.9,1826.7,1.0]
[1680353971090,4.35684247,1826.9,1826.7,1.0]
[1680353971879,4.35684247,1826.9,1826.6,43.83444031]
[1680353972080,1.43587787,1826.7,1826.6,43.83444031]
[1680353975991,0.57435115,1826.7,1826.6,43.83444031]
[1680353976990,0.57435115,1826.7,1826.6,44.65544031]
[1680353979491,0.57435115,1826.7,1826.6,47.86324031]
[1680354001504,0.57435115,1826.7,1826.6,53.62440497]
[1680354017826,0.57435115,1826.7,1826.6,50.41660497]
[1680354020531,0.57435115,1826.7,1826.6,49.59560497]
[1680354032438,0.57435115,1826.7,1826.6,52.80340497]
[1680354037043,0.57435115,1826.7,1826.6,53.61740497]
[1680354067360,0.57435115,1826.7,1826.6,50.40960497]
[1680354067558,0.86152672,1826.7,1826.6,50.40960497]
[1680354068955,1.43588192,1826.7,1826.6,50.40960497]
[1680354070961,0.5743552,1826.7,1826.6,53.61740497]
[1680354073273,1.43588192,1826.7,1826.6,53.61740497]
[1680354073861,0.86152672,1826.7,1826.6,50.40960497]
[1680354077166,0.86152672,1826.7,1826.6,44.64844031]
[1680354077367,0.57430377,1826.7,1826.6,47.85624031]
[1680354078060,1.43583049,1826.7,1826.6,47.85624031]
[1680354078463,0.86152672,1826.7,1826.6,44.64844031]
[1680354079161,1.14904247,1826.7,1826.6,43.01744031]
[1680354079365,2.14904247,1826.7,1826.6,43.01744031]
[1680354080064,1.14904247,1826.7,1826.6,43.01744031]
[1680354082861,6.17484247,1826.8,1826.6,43.01744031]
[1680354083764,6.17484247,1826.8,1826.6,41.33947718]
[1680354084760,0.86089031,1826.7,1826.6,41.33947718]
[1680354086365,6.17484247,1826.8,1826.6,41.33947718]
[1680354086568,5.17484247,1826.8,1826.6,41.33947718]
[1680354086760,0.86076609,1826.7,1826.6,41.33947718]
[1680354090968,0.86076609,1826.7,1826.6,0.53947718]
[1680354091169,0.86076609,1826.7,1826.5,0.819]
[1680354091371,0.57373314,1826.6,1826.5,0.819]
[1680354092065,4.06856609,1826.6,1826.5,1.819]
[1680354092371,4.06856609,1826.6,1826.5,0.819]
[1680354094771,3.2078,1826.6,1826.5,0.819]
[1680354096975,3.2078,1826.6,1826.4,41.617]
[1680354097175,3.2078,1826.6,1826.4,0.817]
[1680354097572,3.2078,1826.6,1826.5,40.8]
[1680354100385,4.06856609,1826.6,1826.5,40.8]
[1680354100876,3.2078,1826.6,1826.5,40.8]
[1680354101678,4.06856609,1826.6,1826.5,40.8]
[1680354107386,1.67576609,1826.7,1826.5,40.8]
[1680354107684,1.67576609,1826.7,1826.6,1.0]
[1680354110291,0.86076609,1826.7,1826.6,1.819]
[1680354111183,0.86076609,1826.7,1826.6,2.37453475]
[1680354112090,0.86076609,1826.7,1826.6,1.37453475]
[1680354112391,0.86076609,1826.7,1826.6,2.37453475]
[1680354112988,0.86076609,1826.7,1826.6,1.37453475]
[1680354113289,0.86076609,1826.7,1826.6,42.17453475]
[1680354114892,4.35684247,1826.8,1826.6,42.17453475]
[1680354115492,4.35684247,1826.8,1826.7,1.0]
[1680354117297,3.2078,1826.8,1826.7,1.0]
[1680354118297,4.355589,1826.8,1826.7,1.0]
[1680354118494,4.355589,1826.8,1826.6,42.17653475]
[1680354118792,1.147789,1826.7,1826.6,42.17653475]
[1680354124797,4.64212228,1826.8,1826.6,42.17653475]
[1680354125993,1.43432228,1826.7,1826.6,42.17653475]
[1680354126200,4.64212228,1826.8,1826.6,42.17653475]
[1680354127101,5.45712228,1826.8,1826.6,41.35553475]
[1680354127596,1.43432228,1826.7,1826.6,41.35553475]
[1680354133411,2.11312303,1826.7,1826.6,41.35553475]
[1680354133610,2.93412303,1826.7,1826.2,0.821]
[1680354133910,0.86153308,1826.4,1826.3,1.0]
[1680354134099,0.86153308,1826.4,1826.3,41.8]
[1680354137111,0.86153308,1826.4,1826.3,42.621]
[1680354142126,0.86153308,1826.5,1826.3,42.621]
[1680354142431,0.86153308,1826.4,1826.3,1.821]
[1680354142822,0.86153308,1826.4,1826.3,42.621]
[1680354143022,4.06933308,1826.4,1826.3,42.621]
[1680354143729,3.2078,1826.4,1826.3,42.621]
[1680354145230,5.21804385,1826.6,1826.3,43.442]
[1680354145431,4.35651077,1826.6,1826.5,0.821]
[1680354145631,3.2078,1826.6,1826.5,0.821]
[1680354147836,4.35651077,1826.6,1826.5,0.821]
[1680354151037,3.2078,1826.6,1826.5,0.821]
[1680354151339,4.35651077,1826.6,1826.5,0.821]
[1680354156735,4.35651077,1826.6,1826.3,42.621]
[1680354156935,0.86113443,1826.4,1826.3,42.621]
[1680354185460,0.86113443,1826.4,1826.3,41.621]
[1680354185757,0.86113443,1826.4,1826.3,40.8]
[1680354186966,0.86113443,1826.4,1826.3,41.621]
[1680354200271,4.35651077,1826.5,1826.3,41.621]
[1680354208382,0.86166232,1826.4,1826.3,41.621]
[1680354208881,4.35651077,1826.5,1826.3,41.621]
[1680354209677,1.14871077,1826.4,1826.3,41.621]
[1680354209877,3.2078,1826.5,1826.3,41.621]
[1680354209878,4.35651077,1826.5,1826.3,41.621]
[1680354210270,1.14871077,1826.4,1826.3,41.621]
[1680354210470,4.35651077,1826.5,1826.3,41.621]
[1680354214784,1.14871077,1826.4,1826.3,41.621]
[1680354215079,4.35651077,1826.5,1826.3,41.621]
[1680354217585,1.14871077,1826.4,1826.3,41.621]
[1680354217979,0.86165435,1826.4,1826.3,41.621]
[1680354218183,4.35651077,1826.5,1826.3,41.621]
[1680354218377,4.35651077,1826.5,1826.4,1.0]
[1680354221092,4.35651077,1826.5,1826.3,41.621]
[1680354221287,4.35651077,1826.5,1826.4,1.0]
[1680354224496,3.2078,1826.5,1826.4,1.0]
[1680354228099,3.2078,1826.5,1826.3,41.619]
[1680354228397,1.14911671,1826.4,1826.3,41.619]
[1680354229298,1.14911671,1826.5,1826.3,41.619]
[1680354230190,1.14911671,1826.5,1826.4,1.0]
[1680354243602,4.64212228,1826.6,1826.4,1.0]
[1680354246607,1.43432228,1826.6,1826.4,1.0]
[1680354246804,5.32095662,1826.6,1826.4,1.0]
[1680354246995,4.64212228,1826.6,1826.4,1.0]
[1680354251306,1.43432228,1826.5,1826.4,1.0]
[1680354251503,4.64212228,1826.6,1826.4,1.0]
[1680354251703,1.43432228,1826.5,1826.4,1.0]
[1680354261013,1.14896107,1826.5,1826.4,1.0]
[1680354263017,4.64212228,1826.6,1826.4,1.0]
[1680354263917,1.14896811,1826.5,1826.4,1.0]
[1680354264619,4.64212228,1826.6,1826.4,1.0]
[1680354264820,1.1489726,1826.5,1826.4,1.0]
[1680354265519,4.64212228,1826.6,1826.4,1.0]
[1680354267022,4.64212228,1826.6,1826.4,1.817]
[1680354268622,1.43432228,1826.6,1826.4,1.817]
[1680354268921,1.14897495,1826.5,1826.4,1.817]
[1680354276928,1.14897495,1826.5,1826.4,1.819]
[1680354277625,1.14897495,1826.5,1826.3,41.617]
[1680354277830,1.14897495,1826.4,1826.3,41.617]
[1680354278027,4.35677495,1826.4,1826.3,41.617]
[1680354286939,4.35677495,1826.4,1826.3,40.8]
[1680354296051,4.35677495,1826.4,1826.3,41.621]
[1680354297852,1.14897495,1826.4,1826.3,41.621]
[1680354298053,1.14897495,1826.5,1826.3,41.621]
[1680354298253,1.14897495,1826.5,1826.4,1.0]
[1680354306961,1.14897495,1826.5,1826.4,1.821]
[1680354307562,1.14897495,1826.6,1826.4,1.821]
[1680354308458,1.14897495,1826.5,1826.4,1.821]
[1680354312262,0.86141333,1826.5,1826.4,7.301]
[1680354312565,1.43567044,1826.5,1826.4,7.301]
[1680354312954,0.86141333,1826.5,1826.4,7.301]
[1680354313154,0.57410214,1826.5,1826.4,7.301]
[1680354322763,0.57410214,1826.6,1826.4,7.301]
[1680354322960,0.57410214,1826.6,1826.5,6.301]
[1680354323671,1.43551547,1826.6,1826.5,6.301]
[1680354324363,0.86141333,1826.6,1826.5,6.301]
[1680354324565,1.43507769,1826.6,1826.5,6.301]
[1680354332880,1.43507769,1826.6,1826.5,0.821]
[1680354334580,0.86141333,1826.6,1826.5,0.821]
[1680354338887,0.86141333,1826.6,1826.5,41.621]
[1680354347096,0.86141333,1826.6,1826.5,41.619]
[1680354351405,1.14897495,1826.7,1826.5,41.619]
[1680354355011,1.14897495,1826.6,1826.5,41.619]
[1680354365610,5.17777495,1826.6,1826.3,0.821]
[1680354365815,0.86185186,1826.4,1826.3,0.821]
[1680354366012,0.86185186,1826.4,1826.3,41.621]
[1680354366814,0.5744113,1826.4,1826.3,44.8288]
[1680354367517,0.5744113,1826.4,1826.3,41.621]
[1680354375415,0.5744113,1826.4,1826.3,42.442]
[1680354380819,1.43626316,1826.4,1826.3,42.442]
[1680354384725,0.5744113,1826.4,1826.3,42.442]
[1680354387027,0.5744113,1826.4,1826.3,41.621]
[1680354398238,0.5744113,1826.4,1826.3,0.821]
[1680354406941,0.86185186,1826.4,1826.3,0.821]
[1680354414351,0.86185186,1826.4,1826.3,41.621]
[1680354456295,0.86185186,1826.4,1826.3,0.821]
[1680354458097,1.14897495,1826.5,1826.3,0.821]
[1680354460297,0.8617716,1826.4,1826.3,0.821]
[1680354465297,0.8617716,1826.4,1826.3,1.821]
[1680354472209,0.8617716,1826.4,1826.3,42.621]
[1680354472809,0.86162592,1826.4,1826.3,42.621]
[1680354477013,0.57433823,1826.4,1826.3,42.621]
[1680354477618,0.57433823,1826.4,1826.3,45.8288]
[1680354478410,0.57433823,1826.4,1826.3,5.0288]
[1680354483420,0.57433823,1826.4,1826.3,1.821]
[1680354494222,0.57433823,1826.4,1826.3,0.821]
[1680354494521,0.57433823,1826.4,1826.3,41.621]
[1680354498331,0.57433823,1826.4,1826.3,0.821]
[1680354510845,1.43596415,1826.4,1826.3,0.821]
[1680354514441,1.43596415,1826.4,1826.3,41.621]
[1680354519450,0.86162592,1826.4,1826.3,41.621]
[1680354526954,0.86162592,1826.4,1826.3,41.619]
[1680354528963,0.57456287,1826.4,1826.3,41.619]
[1680354535467,0.57456287,1826.4,1826.3,47.099]
[1680354536369,0.57456287,1826.4,1826.3,41.619]
[1680354541975,0.57456287,1826.4,1826.3,42.44]
[1680354546984,0.57456287,1826.4,1826.3,41.619]
[1680354549489,0.57456287,1826.4,1826.3,47.099]
[1680354557002,0.57456287,1826.4,1826.3,47.92]
[1680354561899,0.57456287,1826.4,1826.3,51.1278]
[1680354570508,0.57456287,1826.4,1826.3,50.3068]
[1680354571012,0.57456287,1826.4,1826.3,51.1208]
[1680354577113,0.57456287,1826.4,1826.3,51.1158]
[1680354584813,0.57456287,1826.5,1826.3,51.1158]
[1680354585114,0.57456287,1826.5,1826.4,7.301]
[1680354585418,0.57456287,1826.5,1826.4,48.101]
[1680354586616,0.56754716,1826.7,1826.4,48.101]
[1680354586922,0.56754716,1826.7,1826.6,4.8428]
[1680354587116,0.56754716,1826.7,1826.6,5.8428]
[1680354593127,0.56754716,1826.7,1826.6,4.8428]
[1680354597126,0.56754716,1826.7,1826.6,4.0288]
[1680354601429,0.56754716,1826.7,1826.6,5.0288]
[1680354606934,0.56754716,1826.7,1826.6,5.8498]
[1680354612941,0.56754716,1826.7,1826.6,3.2078]
[1680354613147,0.86162592,1826.7,1826.6,3.2078]
[1680354618842,1.68262592,1826.7,1826.6,3.2078]
[1680354619346,1.68262592,1826.7,1826.4,44.8288]
[1680354626961,0.86162592,1826.7,1826.5,0.819]
[1680354627163,0.86162592,1826.7,1826.5,1.819]
[1680354628661,0.86162592,1826.6,1826.5,1.819]
[1680354628861,0.86162592,1826.6,1826.5,0.819]
[1680354630762,0.86162592,1826.6,1826.5,1.819]
[1680354632564,0.86162592,1826.6,1826.5,0.819]
[1680354632767,0.86162592,1826.6,1826.5,1.819]
[1680354636967,0.86162592,1826.6,1826.5,1.821]
[1680354638067,0.86162592,1826.6,1826.5,0.821]
[1680354644672,2.68262592,1826.6,1826.4,3.2078]
[1680354645472,1.68262592,1826.6,1826.4,3.2078]
[1680354660485,1.68262592,1826.6,1826.5,1.0]
[1680354661178,1.68262592,1826.6,1826.4,4.2078]
[1680354661383,1.68262592,1826.6,1826.5,1.0]
[1680354665285,0.86162592,1826.6,1826.5,1.821]
[1680354665485,0.85784732,1826.6,1826.5,1.821]
[1680354668089,0.85784732,1826.6,1826.5,0.821]
[1680354669888,0.85784732,1826.6,1826.5,1.821]
[1680354670981,0.85784732,1826.6,1826.5,0.821]
[1680354687001,0.85784732,1826.6,1826.4,5.0268]
[1680354687300,1.96397495,1826.7,1826.4,5.0268]
[1680354695706,1.96397495,1826.7,1826.4,1.819]
[1680354696611,1.96397495,1826.7,1826.5,3.2078]
[1680354700815,1.96397495,1826.7,1826.4,1.819]
[1680354702515,1.96397495,1826.7,1826.4,0.819]
[1680354704017,1.96397495,1826.7,1826.4,41.619]